fUST/lending_fUST_20251017
["ID","MTS","AMOUNT","RATE_DAILY","PERIOD"]
[391604038,1760693440784,-1587.0,0.00032184,2]
[391604039,1760693440794,-560.0,0.00032192,2]
[391604040,1760693440803,-1806.03,0.000322,2]
[391604041,1760693440812,-151.27,0.00032262,15]
[391604042,1760693440822,-151.27,0.00032262,15]
[391604043,1760693440831,-150.18,0.00032262,15]
[391604044,1760693440841,-151.27,0.00032362,15]
[391604045,1760693440851,-150.18,0.00032362,15]
[391604046,1760693440860,-2351.0,0.0003239,3]
[391604047,1760693440870,-458.0,0.00032403,2]
[391604048,1760693440885,-1458.71663673,0.00032447,2]
[391604049,1760693440897,-151.27,0.00032462,15]
[391604050,1760693440906,-150.2596265,0.00032462,15]
[391604051,1760693440915,-180.0,0.00032548,3]
[391604052,1760693440924,-180.0,0.00032548,3]
[391604053,1760693440933,-587.0,0.00032548,2]
[391604054,1760693440943,-587.0,0.00032548,3]
[391604055,1760693440952,-1447.58183255,0.00032551,2]
[391604056,1760693440963,-151.27,0.00032562,15]
[391604057,1760693440973,-1000.0,0.00032621,5]
[391604058,1760693440982,-2313.0,0.00032658,3]
[391604059,1760693440992,-151.27,0.00032662,15]
[391604060,1760693441001,-458.0,0.00032671,2]
[391604061,1760693441011,-1000.0,0.00032721,5]
[391604062,1760693441020,-1000.0,0.00032721,5]
[391604063,1760693441028,-660.0,0.0003274,2]
[391604064,1760693441038,-151.27,0.00032762,15]
[391604065,1760693441047,-458.0,0.00032766,7]
[391604066,1760693441057,-458.0,0.00032791,7]
[391604067,1760693441070,-1458.71663673,0.00032851,2]
[391604068,1760693441080,-151.27,0.00032862,15]
[391604069,1760693441089,-1589.0,0.0003287,2]
[391604070,1760693441099,-1999.0,0.00032876,120]
[391604071,1760693441109,-164.87466837,0.00032885,10]
[391604072,1760693441120,-152.28617704,0.00032885,10]
[391604073,1760693441130,-458.0,0.00032898,2]
[391604074,1760693441151,-888.96,0.000329,2]
[391604075,1760693441164,-1458.71663673,0.00032945,2]
[391604076,1760693441178,-309.49888691,0.00032959,2]
[391604077,1760693441189,-151.27,0.00032962,60]
[391604078,1760693441200,-458.0,0.00032973,2]
[391604079,1760693441212,-7069.84360093,0.00033,3]
[391604080,1760693441223,-151.27,0.00033062,60]
[391604081,1760693441234,-151.0,0.000331,17]
[391604082,1760693441247,-1447.58183255,0.00033142,2]
[391604083,1760693441258,-1458.71663673,0.00033159,2]
[391604084,1760693441270,-151.27,0.00033162,60]
[391604085,1760693441284,-410.006716,0.00033165,2]
[391604086,1760693441297,-1012.4240118,0.00033168,5]
[391604087,1760693441307,-1500.0,0.00033268,5]
[391604088,1760693441319,-1500.0,0.00033268,5]
[391604089,1760693441329,-760.0,0.00033288,2]
[391604090,1760693441340,-151.0,0.000333,18]
[391604091,1760693441350,-250.0,0.00033304,2]
[391604092,1760693441359,-2198.88,0.00033412,3]
[391604093,1760693441369,-1099.44,0.00033412,3]
[391604094,1760693441384,-549.72,0.00033412,3]
[391604095,1760693441403,-10000.0,0.000335,30]
[391604096,1760693441414,-1458.71663673,0.00033581,2]
[391604097,1760693441425,-151.0,0.000336,15]
[391604098,1760693441437,-458.0,0.000336,2]
[391604099,1760693441448,-200.0,0.00033602,10]
[391604100,1760693441459,-200.0,0.00033602,10]
[391604101,1760693441471,-200.0,0.00033602,10]
[391604102,1760693441482,-200.0,0.00033602,10]
[391604103,1760693441493,-200.0,0.00033602,10]
[391604104,1760693441503,-200.0,0.00033602,10]
[391604105,1760693441513,-640594.568,0.00033602,2]
[391604106,1760693441523,-1587.0,0.00033651,7]
[391604107,1760693441534,-152551.28413,0.00033672,2]
[391604108,1760693441544,-100110.99850005,0.00033682,2]
[391604109,1760693441554,-1999.0,0.00033698,120]
[391604110,1760693441564,-1210.51919468,0.000337,10]
[391604111,1760693441574,-171.778306,0.00033702,10]
[391604112,1760693441583,-458.0,0.0003372,2]
[391604113,1760693441677,-1447.58183255,0.00033733,2]
[391604114,1760693441688,-1728.66,0.000338,14]
[391604115,1760693441698,-309.49888691,0.00033802,2]
[391604116,1760693441707,-654592.0797,0.00033802,7]
[391604117,1760693441718,-150.0,0.00033806,2]
[391604118,1760693441727,-515.1231129,0.00033807,4]
[391604119,1760693441738,-548.8774267,0.00033808,120]
[391604120,1760693441747,-484.42886317,0.00033808,2]
[391604121,1760693441757,-370000.0,0.00033808,2]
[391604122,1760693441767,-1450.1786,0.00033816,5]
[391604123,1760693441777,-2000.0,0.00033816,5]
[391604124,1760693441787,-458.0,0.00033833,2]
[391604125,1760693441798,-341.60892211,0.00033833,2]
[391604126,1760693441807,-860.0,0.00033836,2]
[391604127,1760693441816,-500.0,0.00033873,5]
[391604128,1760693441826,-500.0,0.00033873,5]
[391604129,1760693441836,-500.0,0.00033873,5]
[391604130,1760693441846,-500.0,0.00033873,5]
[391604131,1760693441856,-458.0,0.00033883,2]
[391604132,1760693441866,-201.05751,0.00033898,30]
[391604133,1760693441876,-151.0,0.000339,20]
[391604134,1760693441886,-171.778306,0.000339,2]
[391604135,1760693441903,-1670.73,0.000339,14]
[391604136,1760693441913,-151.0,0.00033902,30]
[391604137,1760693441923,-151.0,0.00033902,30]
[391604138,1760693441933,-164.87466837,0.00033902,10]
[391604139,1760693441943,-152.28617704,0.00033902,10]
[391604140,1760693441952,-100000.0,0.00033902,30]
[391604141,1760693441961,-100000.0,0.00033902,30]
[391604142,1760693441971,-100000.0,0.00033902,30]
[391604143,1760693441980,-100000.0,0.00033902,30]
[391604144,1760693441991,-100000.0,0.00033902,30]
[391604145,1760693442001,-287.70146545,0.00033902,2]
[391604146,1760693442010,-654592.0797,0.00033902,30]
[391604147,1760693442020,-1011.83553606,0.00033902,120]
[391604148,1760693442031,-915.00755389,0.00033902,120]
[391604149,1760693442040,-541749.05690718,0.00033902,20]
[391604150,1760693442070,-108697.80053619,0.00033902,20]
[391604151,1760693442229,-3e-08,0.00033902,20]
[391604159,1760693446751,-849.52201775,0.00032349,2]
[391604160,1760693446761,-131.86814223,0.00033808,2]
[391604161,1760693446773,-18.13185777,0.00033808,2]
[391604162,1760693446783,-321.86814223,0.00033902,20]
[391604163,1760693486240,150.0,0.00025205,2]
[391604164,1760693486813,172.5,0.00025805,2]
[391604165,1760693487145,195.0,0.00026405,2]
[391604168,1760693643609,240.08234726,0.00027,2]
[391604169,1760693643980,500.0,0.000253,2]
[391604171,1760693980686,167.34015194,0.00026905,2]
[391604172,1760694072077,159.0,0.00027,15]
[391604173,1760694073322,159.0,0.00027,15]
[391604174,1760694095956,159.0,0.00027,7]
[391604176,1760694136114,150.0,0.00025205,2]
[391604177,1760694136491,172.5,0.00025805,2]
[391604178,1760694137010,195.0,0.00026405,2]
[391604181,1760694392321,-157.02605353,0.00027005,2]
[391604182,1760694482574,164.87466837,0.00026571,5]
[391604183,1760694485174,152.28617704,0.00026571,5]
[391604190,1760694547121,-60.47394647,0.00027005,2]
[391604191,1760694547142,-519.33129353,0.00027396,2]
[391604210,1760694631805,-1249.22888147,0.00027396,2]
[391604211,1760694631816,-394.70071601,0.00027505,2]
[391604212,1760694631826,-240.0,0.00027605,2]
[391604213,1760694631838,-311.0363559,0.00028081,2]
[391604214,1760694631847,-160.0,0.00028202,2]
[391604215,1760694631857,-262.5,0.00028205,2]
[391604217,1760694631869,-285.0,0.00028805,2]
[391604219,1760694631879,-320.0,0.00029102,2]
[391604220,1760694631889,-127.53404662,0.00029318,2]
[391604248,1760694637592,-172.46595338,0.00029318,2]
[391604250,1760694637602,-300.0,0.00029318,2]
[391604252,1760694637611,-1200.0,0.00029318,2]
[391604254,1760694637620,-19075.97767916,0.00029319,2]
[391604256,1760694637631,-361.57439764,0.00029319,2]
[391604258,1760694637643,-528.73047337,0.00029319,2]
[391604260,1760694637654,-30033.71744983,0.00029319,2]
[391604262,1760694637663,-1200.0,0.00029319,2]
[391604264,1760694637672,-9954.5470823,0.00029321,30]
[391604266,1760694637681,-160.0,0.00029375,2]
[391604268,1760694637690,-1217.48181898,0.00029402,2]
[391604269,1760694637699,-307.5,0.00029405,2]
[391604270,1760694637710,-170.583,0.00029673,23]
[391604272,1760694637719,-200.0,0.00029857,2]
[391604273,1760694637728,-260.0,0.00029923,2]
[391604274,1760694637737,-1004.89170577,0.0003,14]
[391604275,1760694637747,-199.0,0.00030004,7]
[391604276,1760694637756,-330.0,0.00030005,2]
[391604277,1760694637765,-548.8774267,0.00030136,120]
[391604278,1760694637775,-199.0,0.00030278,8]
[391604279,1760694637784,-360.0,0.00030471,2]
[391604280,1760694637793,-199.0,0.00030552,9]
[391604281,1760694637802,-352.5,0.00030605,2]
[391604282,1760694637812,-500.0,0.0003065,5]
[391604283,1760694637821,-500.0,0.0003065,2]
[391604284,1760694637830,-199.0,0.00030826,10]
[391604285,1760694637839,-528.55244104,0.00030833,5]
[391604286,1760694637849,-1852.17,0.00030982,2]
[391604287,1760694637858,-460.0,0.00031019,2]
[391604288,1760694637868,-484.42886317,0.00031091,2]
[391604289,1760694637878,-199.0,0.000311,11]
[391604290,1760694637888,-1458.71663673,0.00031161,2]
[391604291,1760694637897,-154.74944346,0.00031163,2]
[391604292,1760694637907,-161.73,0.00031163,15]
[391604293,1760694637916,-154.92,0.00031163,15]
[391604294,1760694637926,-187.87137488,0.00031198,5]
[391604295,1760694637935,-500.0,0.00031198,2]
[391604296,1760694637945,-375.0,0.00031205,2]
[391604297,1760694637955,-161.73,0.00031263,15]
[391604298,1760694637964,-154.92,0.00031263,15]
[391604299,1760694637974,-504.13021897,0.000313,5]
[391604300,1760694637983,-573.5665844,0.000313,5]
[391604301,1760694637993,-501.00973805,0.000313,5]
[391604302,1760694638002,-501.79380345,0.000313,5]
[391604303,1760694638011,-447.02495962,0.000313,5]
[391604304,1760694638021,-161.75,0.00031363,15]
[391604305,1760694638030,-154.92,0.00031363,15]
[391604306,1760694638039,-199.0,0.00031374,12]
[391604307,1760694638049,-1458.71663673,0.0003141,2]
[391604308,1760694638058,-150.0,0.00031458,2]
[391604309,1760694638068,-154.92,0.00031463,15]
[391604310,1760694638078,-1458.71663673,0.00031549,2]
[391604311,1760694638088,-154.92,0.00031563,15]
[391604312,1760694638098,-560.0,0.00031567,2]
[391604313,1760694638107,-420.0,0.0003162,2]
[391604314,1760694638117,-253.0,0.0003162,3]
[391604315,1760694638126,-199.0,0.00031648,13]
[391604316,1760694638136,-154.92,0.00031663,15]
[391604317,1760694638146,-406.3,0.00031745,10]
[391604318,1760694638156,-500.0,0.00031755,2]
[391604319,1760694638165,-500.0,0.00031755,2]
[391604320,1760694638175,-500.0,0.00031755,2]
[391604321,1760694638185,-500.0,0.00031755,2]
[391604322,1760694638195,-500.0,0.00031755,2]
[391604323,1760694638206,-500.0,0.00031755,2]
[391604324,1760694638216,-500.0,0.00031755,2]
[391604325,1760694638226,-500.0,0.00031755,2]
[391604326,1760694638236,-500.0,0.00031755,2]
[391604327,1760694638246,-251.12834014,0.00031755,2]
[391604328,1760694638256,-500.0,0.00031755,2]
[391604329,1760694638265,-500.0,0.00031755,2]
[391604330,1760694638275,-561.46625114,0.00031755,2]
[391604331,1760694638284,-171.66314074,0.00031755,2]
[391604332,1760694638294,-500.0,0.00031755,2]
[391604333,1760694638304,-500.0,0.00031755,2]
[391604334,1760694638322,-500.0,0.00031755,2]
[391604335,1760694638331,-500.0,0.00031755,2]
[391604336,1760694638340,-500.0,0.00031755,2]
[391604337,1760694638350,-528.5621436,0.00031755,2]
[391604338,1760694638359,-500.0,0.00031755,2]
[391604339,1760694638370,-500.0,0.00031755,2]
[391604340,1760694638379,-500.0,0.00031755,2]
[391604341,1760694638389,-500.0,0.00031755,2]
[391604342,1760694638399,-620.0,0.00031755,2]
[391604343,1760694638409,-290.96140754,0.00031755,2]
[391604344,1760694638419,-500.0,0.00031755,2]
[391604345,1760694638428,-500.0,0.00031755,2]
[391604346,1760694638438,-500.0,0.00031755,2]
[391604347,1760694638448,-500.0,0.00031755,2]
[391604348,1760694638458,-500.0,0.00031755,2]
[391604349,1760694638468,-500.0,0.00031755,2]
[391604350,1760694638479,-500.0,0.00031755,2]
[391604351,1760694638488,-500.0,0.00031755,2]
[391604352,1760694638498,-500.0,0.00031755,2]
[391604353,1760694638507,-500.0,0.00031755,2]
[391604354,1760694638516,-500.0,0.00031755,2]
[391604355,1760694638525,-500.0,0.00031755,2]
[391604356,1760694638535,-500.0,0.00031755,2]
[391604357,1760694638544,-500.0,0.00031755,2]
[391604358,1760694638554,-500.0,0.00031755,2]
[391604359,1760694638564,-500.0,0.00031755,2]
[391604360,1760694638573,-500.0,0.00031755,2]
[391604361,1760694638582,-500.0,0.00031755,2]
[391604362,1760694638592,-500.0,0.00031755,2]
[391604363,1760694638602,-500.0,0.00031755,2]
[391604364,1760694638611,-511.83474647,0.00031755,2]
[391604365,1760694638621,-500.0,0.00031755,2]
[391604366,1760694638630,-500.0,0.00031755,2]
[391604367,1760694638639,-500.0,0.00031755,2]
[391604368,1760694638649,-500.0,0.00031755,2]
[391604369,1760694638659,-500.0,0.00031755,2]
[391604370,1760694638668,-500.0,0.00031755,2]
[391604371,1760694638677,-500.0,0.00031755,2]
[391604372,1760694638687,-500.0,0.00031755,2]
[391604373,1760694638696,-500.0,0.00031755,2]
[391604374,1760694638706,-500.0,0.00031755,2]
[391604375,1760694638715,-500.0,0.00031755,2]
[391604376,1760694638725,-500.0,0.00031755,2]
[391604377,1760694638735,-500.0,0.00031755,2]
[391604378,1760694638744,-500.0,0.00031755,2]
[391604379,1760694638755,-500.0,0.00031755,2]
[391604380,1760694638764,-500.0,0.00031755,2]
[391604381,1760694638773,-500.0,0.00031755,2]
[391604382,1760694638782,-500.0,0.00031755,2]
[391604383,1760694638792,-500.0,0.00031755,2]
[391604384,1760694638800,-500.0,0.00031755,2]
[391604385,1760694638810,-500.0,0.00031755,2]
[391604386,1760694638819,-500.0,0.00031755,2]
[391604387,1760694638829,-1680.0,0.00031756,3]
[391604388,1760694638838,-154.92,0.00031763,15]
[391604389,1760694638847,-397.5,0.00031805,2]
[391604390,1760694638856,-154.99,0.00031863,15]
[391604391,1760694638866,-230.85,0.00031922,14]
[391604392,1760694638875,-1458.71663673,0.00032048,2]
[391604393,1760694638885,-1458.71663673,0.00032092,2]
[391604394,1760694638894,-2066.4939279,0.00032107,2]
[391604395,1760694638904,-660.0,0.00032115,2]
[391604396,1760694638913,-1458.71663673,0.0003239,2]
[391604397,1760694638923,-420.0,0.00032405,2]
[391604398,1760694638932,-231.0,0.00032474,2]
[391604399,1760694638942,-487.56,0.00032544,10]
[391604400,1760694638951,-231.0,0.00032555,2]
[391604401,1760694638960,-760.0,0.00032663,2]
[391604402,1760694638970,-1458.71663673,0.00032767,2]
[391604403,1760694638979,-168.0,0.00032802,2]
[391604404,1760694638989,-168.0,0.00032817,2]
[391604405,1760694638999,-339.81721973,0.00032868,2]
[391604406,1760694639008,-355.61373219,0.00032868,2]
[391604407,1760694639018,-199.75,0.0003299,3]
[391604408,1760694639027,-599.3,0.0003299,3]
[391604409,1760694639037,-67025.1459417,0.0003299,2]
[391604410,1760694639048,-1999.0,0.00032999,120]
[391604411,1760694639057,-313.05973371,0.00032999,7]
[391604412,1760694639067,-159.0,0.00033,30]
[391604413,1760694639077,-159.0,0.00033,30]
[391604414,1760694639087,-159.0,0.00033,30]
[391604415,1760694639096,-159.0,0.00033,60]
[391604416,1760694639106,-160.6,0.00033,120]
[391604417,1760694639116,-20021.5100811,0.00033,2]
[391604418,1760694639126,-442.5,0.00033005,2]
[391604419,1760694639135,-231.0,0.00033017,2]
[391604420,1760694639145,-1458.71663673,0.000331,2]
[391604421,1760694639155,-860.0,0.00033211,2]
[391604422,1760694639165,-252.45740863,0.00033304,2]
[391604423,1760694639175,-1458.71663673,0.00033335,2]
[391604424,1760694639186,-168.0,0.00033423,2]
[391604425,1760694639195,-2001.86519524,0.0003351,10]
[391604426,1760694639206,-1458.71663674,0.00033562,2]
[391604427,1760694639216,-295.013167,0.000336,10]
[391604428,1760694639227,-465.0,0.00033605,2]
[391604429,1760694639236,-295.013167,0.00033613,10]
[391604430,1760694639335,-156.324085,0.00033613,10]
[391604431,1760694639344,-295.013167,0.00033626,10]
[391604432,1760694639353,-156.324085,0.00033626,10]
[391604433,1760694639362,-295.013167,0.00033638,10]
[391604434,1760694639372,-156.324085,0.00033638,10]
[391604435,1760694639381,-295.013167,0.00033651,10]
[391604436,1760694639393,-156.324085,0.00033651,10]
[391604437,1760694639403,-283.17400593,0.0003367,2]
[391604438,1760694639412,-12010.92,0.000337,10]
[391604439,1760694639421,-283.17400591,0.00033736,2]
[391604440,1760694639431,-67025.1459417,0.00033758,2]
[391604441,1760694639441,-960.0,0.00033759,2]
[391604442,1760694639450,-289.51636651,0.00033768,2]
[391604443,1760694639463,-500.0,0.0003378,120]
[391604444,1760694639475,-292.97188739,0.0003378,120]
[391604445,1760694639484,-500.0,0.0003378,120]
[391604446,1760694639494,-500.0,0.0003378,120]
[391604447,1760694639503,-500.0,0.0003378,120]
[391604448,1760694639513,-500.0,0.0003378,120]
[391604450,1760694639523,-500.0,0.0003378,120]
[391604452,1760694639532,-500.0,0.0003378,120]
[391604454,1760694639541,-500.0,0.0003378,120]
[391604455,1760694639551,-500.0,0.0003378,120]
[391604457,1760694639560,-500.0,0.0003378,120]
[391604458,1760694639570,-286.1472086,0.0003378,120]
[391604459,1760694639580,-134050.291883,0.0003378,2]
[391604460,1760694639589,-67025.1459417,0.00033791,2]
[391604461,1760694639598,-3704.34,0.00033799,2]
[391604463,1760694639607,-151.0,0.000338,17]
[391604464,1760694639616,-151.0,0.000338,13]
[391604466,1760694639626,-654592.0797,0.00033801,7]
[391604467,1760694639635,-289.51636651,0.00033801,2]
[391604468,1760694639644,-283.17400591,0.00033801,2]
[391604469,1760694639653,-154.74944345,0.00033801,2]
[391604470,1760694639662,-370000.0,0.00033802,2]
[391604471,1760694639671,-1999.0,0.00033821,120]
[391604472,1760694639680,-3130.2684173,0.0003385,2]
[391604473,1760694639689,-168.0,0.00033871,2]
[391604474,1760694639698,-500.0,0.00033873,5]
[391604475,1760694639710,-500.72958847,0.00033873,5]
[391604476,1760694639720,-500.0,0.00033873,5]
[391604477,1760694639729,-500.0,0.00033873,5]
[391604478,1760694639738,-500.0,0.00033873,5]
[391604479,1760694639747,-201.16558939,0.00033898,10]
[391604480,1760694639757,-151.0,0.00033899,30]
[391604481,1760694639766,-151.0,0.00033899,30]
[391604482,1760694639775,-153.089377,0.00033899,30]
[391604483,1760694639784,-151.0,0.00033899,30]
[391604484,1760694639794,-151.0,0.000339,20]
[391604485,1760694639803,-295.013167,0.000339,20]
[391604486,1760694639812,-1457646.90868053,0.00033901,20]
[391604487,1760694639825,-626.41221792,0.00033901,20]
[391604488,1760694639837,-920.0,0.00033901,20]
[391604489,1760694639852,-329.1,0.00033901,20]
[391604544,1760694642962,-176.75920089,0.00033901,20]
[391604776,1760694723835,500.0,0.000253,2]
[391604777,1760694754790,150.0,0.00025205,2]
[391604778,1760694755246,172.5,0.00025805,2]
[391604779,1760694755627,195.0,0.00026405,2]
[391604780,1760694794628,581.71478411,0.00026905,2]
[391604787,1760695127309,9223.29521589,0.00025,30]
[391604788,1760695127330,776.70478411,0.00025,30]
[391604795,1760695227346,3300.0,0.00027,2]
[391604798,1760695370470,150.0,0.00025205,2]
[391604799,1760695370861,172.5,0.00025805,2]
[391604800,1760695371331,195.0,0.00026405,2]
[391604808,1760695503141,341.23126365,0.00025,30]
[391604821,1760695729591,328.005372,0.00013699,2]
[391604822,1760695730014,328.005372,0.00020187,2]
[391604823,1760695730273,328.005372,0.00026676,2]
[391604824,1760695755120,-200.0,0.00027005,2]
[391604825,1760695755140,-217.5,0.00027005,2]
[391604826,1760695755161,-200.0,0.000271,2]
[391604827,1760695755294,-1490.00214838,0.00027345,2]
[391604881,1760695831877,-1858.14,0.0002736,2]
[391604883,1760695831886,-1116.6237315,0.00027517,2]
[391604884,1760695831896,-240.0,0.00027605,2]
[391604886,1760695831905,-1000.0,0.00027886,30]
[391604888,1760695831915,-201.36,0.000281,2]
[391604890,1760695831924,-386.60010919,0.0002818,2]
[391604892,1760695831933,-262.5,0.00028205,2]
[391604894,1760695831942,-1200.0,0.00028418,2]
[391604895,1760695831951,-1200.0,0.00028419,2]
[391604897,1760695831964,-300.0,0.00028419,2]
[391604899,1760695831973,-300.0,0.00028419,2]
[391604901,1760695831982,-300.0,0.00028419,2]
[391604903,1760695831991,-300.0,0.00028419,2]
[391604905,1760695831999,-2103.670924,0.0002842,2]
[391604907,1760695832008,-50000.0,0.00028647,2]
[391604908,1760695832017,-3716.28,0.00028663,2]
[391604910,1760695832027,-285.0,0.00028805,2]
[391604912,1760695832036,-300.0,0.00028986,30]
[391604914,1760695832045,-300.0,0.00028986,30]
[391604916,1760695832054,-300.0,0.00028986,30]
[391604918,1760695832064,-300.0,0.00028986,30]
[391604920,1760695832073,-300.0,0.00028986,30]
[391604921,1760695832082,-300.0,0.00028986,30]
[391604923,1760695832091,-300.0,0.00028986,30]
[391604925,1760695832100,-300.0,0.00028986,30]
[391604927,1760695832110,-300.0,0.00028986,30]
[391604929,1760695832120,-300.0,0.00028986,30]
[391604931,1760695832129,-300.0,0.00028986,30]
[391604933,1760695832139,-300.0,0.00028986,30]
[391604934,1760695832148,-300.0,0.00028986,30]
[391604936,1760695832159,-300.0,0.00028986,30]
[391604938,1760695832171,-300.0,0.00028986,30]
[391604940,1760695832180,-500.0,0.00029,7]
[391604942,1760695832190,-501.0,0.00029,7]
[391604944,1760695832200,-500.0,0.00029,5]
[391604946,1760695832211,-500.0,0.00029,5]
[391604948,1760695832221,-500.0,0.00029,5]
[391604950,1760695832230,-666.0,0.00029032,2]
[391604952,1760695832240,-501.73795999,0.00029367,5]
[391604954,1760695832250,-500.0,0.00029367,5]
[391604956,1760695832259,-600.0,0.00029379,30]
[391604958,1760695832271,-307.5,0.00029405,2]
[391604960,1760695832280,-230.85,0.00029531,7]
[391604962,1760695832290,-500.0,0.00029548,5]
[391604963,1760695832299,-500.0,0.000296,5]
[391604965,1760695832308,-500.0,0.000296,5]
[391604967,1760695832318,-169.5172239,0.0002977,2]
[391604969,1760695832328,-154.74944345,0.00029905,2]
[391604971,1760695832337,-500.0,0.00029915,5]
[391604973,1760695832348,-5574.43,0.00029966,2]
[391604975,1760695832357,-500.0,0.00029966,2]
[391604977,1760695832367,-2000.0,0.0003,2]
[391604990,1760695832496,-842.85864557,0.0003,14]
[391604992,1760695832506,-330.0,0.00030005,2]
[391604994,1760695832515,-1937.29,0.00030125,10]
[391604996,1760695832525,-1614.4,0.00030125,10]
[391604998,1760695832535,-500.0,0.00030135,2]
[391604999,1760695832544,-500.0,0.00030135,2]
[391605001,1760695832553,-205.58174859,0.00030135,2]
[391605003,1760695832563,-500.0,0.00030135,2]
[391605005,1760695832573,-488.50136094,0.00030135,2]
[391605007,1760695832582,-500.0,0.00030135,2]
[391605009,1760695832591,-500.0,0.00030135,2]
[391605011,1760695832600,-500.0,0.00030135,2]
[391605013,1760695832609,-481.16745673,0.00030135,2]
[391605014,1760695832619,-500.0,0.00030135,2]
[391605016,1760695832628,-500.0,0.00030135,2]
[391605017,1760695832638,-500.0,0.00030135,2]
[391605019,1760695832647,-500.0,0.00030135,2]
[391605020,1760695832656,-500.0,0.00030135,2]
[391605022,1760695832666,-500.0,0.00030135,2]
[391605024,1760695832675,-500.0,0.00030135,2]
[391605026,1760695832684,-500.0,0.00030135,2]
[391605028,1760695832694,-500.0,0.00030135,2]
[391605029,1760695832703,-500.0,0.00030135,2]
[391605031,1760695832712,-500.0,0.00030135,2]
[391605033,1760695832721,-500.0,0.00030135,2]
[391605035,1760695832734,-500.0,0.00030135,2]
[391605037,1760695832744,-500.0,0.00030135,2]
[391605039,1760695832753,-500.0,0.00030135,2]
[391605040,1760695832762,-500.0,0.00030135,2]
[391605042,1760695832773,-363.63707477,0.00030135,2]
[391605044,1760695832782,-500.0,0.00030135,2]
[391605046,1760695832793,-485.39687514,0.00030135,2]
[391605048,1760695832803,-500.0,0.00030135,2]
[391605050,1760695832812,-500.0,0.00030135,2]
[391605051,1760695832821,-500.0,0.00030135,2]
[391605053,1760695832830,-500.0,0.00030135,2]
[391605055,1760695832839,-302.40206282,0.00030135,2]
[391605057,1760695832849,-500.0,0.00030135,2]
[391605059,1760695832858,-500.0,0.00030135,2]
[391605061,1760695832867,-500.0,0.00030135,2]
[391605063,1760695832876,-500.0,0.00030135,2]
[391605064,1760695832885,-500.0,0.00030135,2]
[391605066,1760695832895,-500.0,0.00030135,2]
[391605068,1760695832904,-329.09614076,0.00030135,2]
[391605070,1760695832913,-500.0,0.00030135,2]
[391605072,1760695832923,-500.0,0.00030135,2]
[391605074,1760695832932,-500.0,0.00030135,2]
[391605076,1760695832942,-500.0,0.00030135,2]
[391605078,1760695832951,-237.15,0.00030136,2]
[391605079,1760695832962,-500.0,0.00030136,120]
[391605081,1760695832972,-1101.850115,0.00030137,120]
[391605083,1760695832983,-294.19273897,0.00030233,5]
[391605085,1760695832992,-500.0,0.00030233,5]
[391605087,1760695833001,-500.0,0.00030233,5]
[391605088,1760695833011,-500.0,0.00030233,5]
[391605090,1760695833020,-251.45294001,0.00030513,2]
[391605092,1760695833029,-452.61529202,0.00030513,2]
[391605094,1760695833039,-804.64940804,0.00030513,2]
[391605096,1760695833048,-1257.26470006,0.00030513,2]